fUST/lending_fUST_20240208
["ID","MTS","AMOUNT","RATE_DAILY","PERIOD"]
[313477765,1707389905523,-1954.752064,0.00018899,2]
[313477766,1707389905546,-1954.75207179,0.00018899,2]
[313477767,1707389905568,-583.721976,0.00018899,2]
[313477768,1707389905590,-583.721976,0.00018899,2]
[313477769,1707389905613,-583.721976,0.00018899,2]
[313477770,1707389905637,-583.721976,0.00018899,2]
[313477771,1707389905658,-583.721976,0.00018899,2]
[313477772,1707389905680,-583.721976,0.00018899,2]
[313477773,1707389905702,-583.721976,0.00018899,2]
[313477774,1707389905724,-583.721976,0.00018899,2]
[313477775,1707389905746,-583.721976,0.00018899,2]
[313477776,1707389905768,-583.721967,0.00018899,2]
[313477777,1707389905790,-943.97804012,0.000189,2]
[313477778,1707389905879,1961.40823934,0.00018,2]
[313477779,1707389928510,151.0,0.00018894,2]
[313477780,1707389928904,151.0,0.00018894,2]
[313477781,1707389929503,202.701151,0.00018894,2]
[313477785,1707390145565,629.31869341,0.000189,2]
[313477923,1707390632054,-1961.40823934,0.00019486,2]
[313477924,1707390632064,-1018.41805308,0.00019487,2]
[313477925,1707390632074,-6806.55216034,0.00019488,2]
[313477926,1707390632083,-2568.13143387,0.000195,2]
[313477927,1707390632093,-13269.86165421,0.0001974,2]
[313477928,1707390632103,-680.94052688,0.0002,2]
[313477929,1707390632113,-1868.4394301,0.00020493,2]
[313477930,1707390632122,-4369.24386285,0.00021,2]
[313477931,1707390632131,-200.0,0.00021713,7]
[313477932,1707390632140,-2725.00316832,0.00021902,2]
[313477933,1707390632149,-7854.31,0.00021903,3]
[313477934,1707390632159,-155.31953623,0.00021903,2]
[313477935,1707390632168,-305.87828918,0.00021903,2]
[313477936,1707390632177,-9425.18,0.00021904,3]
[313477937,1707390632186,-915.59258083,0.00021908,2]
[313477938,1707390632195,-612.00065046,0.00021908,2]
[313477939,1707390632205,-224.90793634,0.00021908,2]
[313477940,1707390632214,-221.1567244,0.00021908,2]
[313477941,1707390632223,-1305.67390827,0.00021908,2]
[313477942,1707390632232,-182.70912118,0.00021908,2]
[313477943,1707390632241,-356.28578932,0.00021908,2]
[313477944,1707390632250,-246.07279347,0.00021908,2]
[313477945,1707390632259,-199.56495921,0.00021909,2]
[313477946,1707390632269,-648.63216688,0.00021909,2]
[313477947,1707390632278,-3571.3903092,0.00021909,2]
[313477948,1707390632287,-245.4493339,0.0002191,2]
[313477949,1707390632296,-218.06808199,0.00021913,2]
[313477950,1707390632305,-17017.47255602,0.00021913,2]
[313477951,1707390632315,-170.27789545,0.00021913,2]
[313477952,1707390632324,-563.010236,0.00021913,2]
[313477953,1707390632333,-820.60094681,0.00021913,2]
[313477954,1707390632342,-310.0,0.00021913,2]
[313477955,1707390632352,-4561.6341242,0.00021913,2]
[313477956,1707390632361,-1858.63739895,0.00021913,2]
[313477957,1707390632370,-589.70386926,0.00021913,2]
[313477958,1707390632378,-1548.97348012,0.00021914,2]
[313477959,1707390632388,-18947.68211071,0.00021914,2]
[313477960,1707390632396,-151.0,0.00021914,2]
[313477961,1707390632406,-289.404983,0.00021914,2]
[313477962,1707390632415,-166.666667,0.00021918,2]
[313477963,1707390632424,-522.5599041,0.00023707,2]
[313477974,1707390638121,-98.28802515,0.00023707,2]
[313477975,1707390638131,-280.0,0.00023884,7]
[313477976,1707390638141,-629.31869341,0.000239,2]
[313477978,1707390638150,-2327.25824479,0.00024,2]
[313477995,1707390641143,-1354.04249189,0.00024,2]
[313477996,1707390641165,-358.80027806,0.00024,2]
[313477997,1707390641178,-131.35075744,0.00024482,2]
[313477998,1707390641192,-35.31590956,0.00024482,2]
[313477999,1707390641202,-464.32529095,0.00024893,2]
[313478000,1707390641215,-155.71710551,0.00024893,2]
[313478001,1707390641225,-200.20420672,0.000249,2]
[313478002,1707390641235,-162.16007322,0.00024963,2]
[313478003,1707390641247,-376.91861455,0.00024998,2]
[313478004,1707390641259,-562.27269717,0.00024998,2]
[313478005,1707390641269,-617.04717816,0.00025,2]
[313478026,1707390643129,-826.90980628,0.00025,2]
[313478114,1707390646122,-1104.21770938,0.00025,2]
[313478115,1707390646131,-151.0,0.00025,2]
[313478116,1707390646141,-3130.40666223,0.00025,2]
[313478117,1707390646153,-837.16845098,0.00025,2]
[313478118,1707391494118,2500.0,0.00042321,30]
[313478119,1707391541538,200.0,0.0003,120]
[313478185,1707391832242,-2019.82768151,0.00019776,2]
[313478200,1707391832357,-2160.92776673,0.00019776,2]
[313478202,1707391832367,-2140.10952822,0.00019777,2]
[313478204,1707391832377,-1018.41805308,0.00019777,2]
[313478206,1707391832389,-200.0,0.00021759,7]
[313478208,1707391832399,-209.77289781,0.000219,2]
[313478210,1707391832408,-166.666668,0.00022204,2]
[313478212,1707391832417,-245.5896049,0.00022513,2]
[313478214,1707391832428,-280.0,0.00023935,7]
[313478216,1707391832437,-620.00211983,0.0002483,2]
[313478218,1707391832447,-175.56934482,0.00024998,2]
[313478220,1707391832458,-156.6549543,0.00024999,2]
[313478222,1707391832467,-155.10391963,0.00025,2]
[313478224,1707391832478,-331.11124268,0.00025,2]
[313478226,1707391832490,-682.06862605,0.00025,2]
[313478227,1707391832501,-467.09929999,0.00025,2]
[313478228,1707391832514,-940.05,0.00025,2]
[313478229,1707391833214,1530.0,0.00042332,30]
[313478273,1707391838810,-2318.73984655,0.00025,2]
[313478274,1707391838820,-605.52920005,0.00025,7]
[313478514,1707391843776,-1114.9970642,0.00023404,2]
[313478516,1707391843786,-3611.10174315,0.00025,7]
[313478550,1707391844453,-16.33160351,0.00025,7]
[313478552,1707391844469,-2564.25,0.00025,7]
[313478554,1707391844480,-898.07769812,0.00025,7]
[313478557,1707391844491,-10214.47483209,0.00025,7]
[313478559,1707391844502,-1143.03235867,0.00025,7]
[313478639,1707391846367,-18376.46251899,0.00025,7]
[313478641,1707391846378,-955.92067015,0.00025,7]
[313478642,1707391846390,-1753.704247,0.00025,7]
[313478643,1707391846401,-55.492028,0.00025,2]
[313478779,1707393033695,-167.52109951,0.00021883,2]
[313478780,1707393033704,-1114.9970642,0.00021884,2]
[313478781,1707393033713,-1018.41805308,0.00021884,2]
[313478782,1707393033722,-682.12992695,0.00021885,2]
[313478783,1707393033732,-1655.11791858,0.00021885,2]
[313478837,1707393038684,-812.37226816,0.00021885,2]
[313478839,1707393038695,-615.90649162,0.00021897,2]
[313478841,1707393038704,-231.418886,0.00022671,2]
[313478843,1707393038713,-277.34888464,0.000229,2]
[313478845,1707393038722,-1263.33437611,0.00023,2]
[313478850,1707393038851,-7757.9764971,0.00023451,2]
[313478851,1707393038865,-1978.67892517,0.00024999,2]
[313478852,1707393038874,-2091.03843255,0.00025,2]
[313478853,1707393038884,-155.07133281,0.00025,2]
[313478854,1707393038893,-1831.79022935,0.00025,2]
[313478856,1707393038902,-200.0,0.00025,2]
[313478858,1707393038911,-300.0,0.00025,2]
[313478860,1707393038920,-2732.88603195,0.00025,2]
[313478861,1707393038929,-4739.06901527,0.00025,2]
[313478863,1707393038938,-200.0,0.00025299,7]
[313478864,1707393038947,-7407.43141525,0.00025994,2]
[313478865,1707393038956,-3156.47,0.00025996,3]
[313478866,1707393038966,-6019.18,0.00025996,3]
[313478867,1707393038976,-5015.99,0.00025996,3]
[313478868,1707393038985,-4179.99,0.00025996,3]
[313478869,1707393038994,-1807.04814622,0.00025999,2]
[313478870,1707393039004,-1837.0,0.00026,2]
[313478871,1707393039013,-155.07288426,0.00026004,2]
[313478872,1707393039022,-155.07288426,0.00026004,2]
[313478873,1707393039031,-2011.3488086,0.00026004,2]
[313478874,1707393039040,-255.51768053,0.00026005,2]
[313478875,1707393039050,-58057.00250231,0.00026006,2]
[313478876,1707393039058,-620.00010599,0.00026072,2]
[313478877,1707393039068,-161.29698719,0.00026094,2]
[313478878,1707393039077,-431.39058791,0.00026095,2]
[313478879,1707393039086,-6806.75208825,0.00026095,2]
[313478880,1707393039095,-191.66633816,0.00026096,2]
[313478881,1707393039104,-554.62566624,0.00026104,2]
[313478882,1707393039113,-6799.23859091,0.00026104,2]
[313478883,1707393039122,-820.60094681,0.00026104,2]
[313478884,1707393039131,-332.43333194,0.00026104,2]
[313478885,1707393039140,-231.15539563,0.00026105,2]
[313478886,1707393039149,-330.98251905,0.00026105,3]
[313478887,1707393039158,-1993.46407044,0.00026106,2]
[313478888,1707393039166,-567.8492355,0.00026175,2]
[313478889,1707393039175,-5000.0,0.00026218,2]
[313478890,1707393039185,-5000.0,0.00026218,2]
[313478891,1707393039194,-7093.14536248,0.00026218,2]
[313478892,1707393039203,-5000.0,0.00026218,2]
[313478893,1707393039212,-5000.0,0.00026218,2]
[313478894,1707393039222,-5000.0,0.00026218,2]
[313478895,1707393039231,-10687.34374897,0.00026218,2]
[313478896,1707393039240,-5000.0,0.00026238,2]
[313478897,1707393039249,-22845.01511945,0.00026245,2]
[313478898,1707393039258,-244.085893,0.00026245,2]
[313478899,1707393039267,-5000.0,0.00026257,2]
[313478900,1707393039276,-5000.0,0.00026257,2]
[313478901,1707393039285,-50000.0,0.00026261,2]
[313478902,1707393039294,-5000.0,0.00026262,2]
[313478903,1707393039303,-500.0,0.00026267,2]
[313478904,1707393039312,-298.32698449,0.00026267,2]
[313478905,1707393039321,-330.19927445,0.00026267,2]
[313478906,1707393039330,-500.0,0.00026267,2]
[313478907,1707393039339,-500.0,0.00026267,2]
[313478908,1707393039348,-874.26865742,0.00026267,2]
[313478909,1707393039357,-500.0,0.00026267,2]
[313478910,1707393039366,-500.0,0.00026267,2]
[313478911,1707393039375,-500.0,0.00026267,2]
[313478912,1707393039384,-500.0,0.00026267,2]
[313478913,1707393039393,-500.0,0.00026267,2]
[313478914,1707393039402,-874.26865742,0.00026267,2]
[313478915,1707393039412,-500.0,0.00026267,2]
[313478916,1707393039421,-339.93466917,0.00026267,2]
[313478917,1707393039430,-500.0,0.00026267,2]
[313478918,1707393039438,-500.0,0.00026267,2]
[313478919,1707393039447,-500.0,0.00026267,2]
[313478920,1707393039456,-874.26865742,0.00026267,2]
[313478921,1707393039465,-490.98837403,0.00026267,2]
[313478922,1707393039475,-500.0,0.00026267,2]
[313478923,1707393039484,-376.42115194,0.00026267,2]
[313478924,1707393039493,-500.0,0.00026267,2]
[313478925,1707393039502,-874.26865742,0.00026267,2]
[313478926,1707393039511,-500.0,0.00026267,2]
[313478927,1707393039519,-500.0,0.00026267,2]
[313478928,1707393039528,-500.0,0.00026267,2]
[313478929,1707393039538,-874.26865742,0.00026267,2]
[313478930,1707393039547,-500.0,0.00026267,2]
[313478931,1707393039556,-500.0,0.00026267,2]
[313478932,1707393039565,-874.26865742,0.00026267,2]
[313478933,1707393039575,-500.0,0.00026267,2]
[313478934,1707393039584,-500.0,0.00026267,2]
[313478935,1707393039594,-500.0,0.00026267,2]
[313478936,1707393039603,-874.26865742,0.00026267,2]
[313478937,1707393039612,-500.0,0.00026267,2]
[313478938,1707393039621,-874.26865742,0.00026267,2]
[313478939,1707393039630,-500.0,0.00026267,2]
[313478940,1707393039639,-874.26865742,0.00026267,2]
[313478941,1707393039648,-500.0,0.00026267,2]
[313478942,1707393039657,-500.0,0.00026267,2]
[313478943,1707393039667,-500.0,0.00026267,2]
[313478944,1707393039678,-874.26865742,0.00026267,2]
[313478945,1707393039687,-500.0,0.00026267,2]
[313478946,1707393039696,-874.26865742,0.00026267,2]
[313478947,1707393039705,-500.0,0.00026267,2]
[313478948,1707393039715,-500.0,0.00026267,2]
[313478949,1707393039724,-874.26865742,0.00026267,2]
[313478950,1707393039734,-500.0,0.00026267,2]
[313478951,1707393039743,-500.0,0.00026267,2]
[313478952,1707393039756,-874.26865742,0.00026267,2]
[313478953,1707393039766,-408.0519364,0.00026267,2]
[313478954,1707393039775,-874.26865742,0.00026267,2]
[313478955,1707393039785,-500.0,0.00026267,2]
[313478956,1707393039795,-500.0,0.00026267,2]
[313478957,1707393039804,-874.26865742,0.00026267,2]
[313478958,1707393039814,-874.26865742,0.00026267,2]
[313478959,1707393039822,-500.0,0.00026267,2]
[313478960,1707393039832,-500.0,0.00026267,2]
[313478961,1707393039842,-500.0,0.00026267,2]
[313478962,1707393039852,-874.26865742,0.00026267,2]
[313478963,1707393039861,-383.51957959,0.00026267,2]
[313478964,1707393039870,-874.26865742,0.00026267,2]
[313478965,1707393039880,-500.0,0.00026267,2]
[313478966,1707393039889,-500.0,0.00026267,2]
[313478967,1707393039898,-874.26865742,0.00026267,2]
[313478968,1707393039908,-874.26865742,0.00026267,2]
[313478969,1707393039917,-500.0,0.00026267,2]
[313478970,1707393039927,-874.26865742,0.00026267,2]
[313478971,1707393039936,-500.0,0.00026267,2]
[313478972,1707393039946,-500.0,0.00026267,2]
[313478973,1707393039956,-874.26865742,0.00026267,2]
[313478974,1707393039967,-500.0,0.00026267,2]
[313478975,1707393039977,-874.26865742,0.00026267,2]
[313478976,1707393039988,-874.26865742,0.00026267,2]
[313478977,1707393039998,-874.26865742,0.00026267,2]
[313478978,1707393040009,-500.0,0.00026267,2]
[313478979,1707393040019,-874.26865742,0.00026267,2]
[313478980,1707393040029,-874.26865742,0.00026267,2]
[313478981,1707393040039,-500.0,0.00026267,2]
[313478982,1707393040049,-874.26865742,0.00026267,2]
[313478983,1707393040058,-874.26865742,0.00026267,2]
[313478984,1707393040068,-500.0,0.00026267,2]
[313478985,1707393040078,-874.26865742,0.00026267,2]
[313478986,1707393040089,-874.26865742,0.00026267,2]
[313478987,1707393040099,-874.26865742,0.00026267,2]
[313478988,1707393040108,-874.26865742,0.00026267,2]
[313478989,1707393040117,-874.26865742,0.00026267,2]
[313478990,1707393040126,-874.26865742,0.00026267,2]
[313478991,1707393040136,-874.26865742,0.00026267,2]
[313478992,1707393040145,-874.26865742,0.00026267,2]
[313478993,1707393040154,-874.26865742,0.00026267,2]
[313478994,1707393040164,-874.26865742,0.00026267,2]
[313478995,1707393040173,-874.26865742,0.00026267,2]
[313478996,1707393040183,-874.26865742,0.00026267,2]
[313478997,1707393040193,-874.26865742,0.00026267,2]
[313478998,1707393040203,-874.26865742,0.00026267,2]
[313478999,1707393040212,-874.26865742,0.00026267,2]
[313479000,1707393040222,-500.0,0.00026267,2]
[313479001,1707393040231,-874.26865742,0.00026267,2]
[313479002,1707393040240,-874.26865742,0.00026267,2]
[313479003,1707393040250,-874.26865742,0.00026267,2]
[313479004,1707393040260,-874.26865742,0.00026267,2]
[313479005,1707393040270,-874.26865742,0.00026267,2]
[313479006,1707393040280,-874.26865742,0.00026267,2]
[313479007,1707393040290,-874.26865742,0.00026267,2]
[313479008,1707393040299,-874.26865742,0.00026267,2]
[313479009,1707393040309,-874.26865742,0.00026267,2]
[313479010,1707393040318,-874.26865742,0.00026267,2]
[313479011,1707393040328,-874.26865742,0.00026267,2]
[313479012,1707393040337,-874.26865742,0.00026267,2]
[313479013,1707393040347,-874.26865742,0.00026267,2]
[313479014,1707393040357,-874.26865742,0.00026267,2]
[313479015,1707393040366,-874.26865742,0.00026267,2]
[313479016,1707393040375,-874.26865742,0.00026267,2]
[313479017,1707393040385,-874.26865742,0.00026267,2]
[313479018,1707393040394,-874.26865742,0.00026267,2]
[313479019,1707393040403,-874.26865742,0.00026267,2]
[313479020,1707393040412,-874.26865742,0.00026267,2]
[313479021,1707393040422,-874.26865742,0.00026267,2]
[313479022,1707393040431,-874.26865742,0.00026267,2]
[313479023,1707393040440,-874.26865742,0.00026267,2]
[313479024,1707393040450,-874.26865742,0.00026267,2]
[313479025,1707393040459,-874.26865742,0.00026267,2]
[313479026,1707393040468,-874.26865742,0.00026267,2]
[313479027,1707393040478,-5000.0,0.00026268,2]
[313479028,1707393040487,-6614.65294164,0.00026268,2]
[313479029,1707393040496,-5000.0,0.00026268,2]
[313479030,1707393040505,-5000.0,0.00026268,2]
[313479031,1707393040514,-5000.0,0.00026268,2]
[313479032,1707393040524,-5000.0,0.00026268,2]
[313479033,1707393040533,-5000.0,0.00026268,2]
[313479034,1707393040542,-5000.0,0.00026268,2]
[313479035,1707393040551,-14826.01763011,0.00026268,2]
[313479036,1707393040560,-5000.0,0.00026268,2]
[313479037,1707393040570,-5000.0,0.00026268,2]
[313479041,1707393040579,-38480.24093912,0.00026268,2]
[313479044,1707393040588,-451.22404958,0.00026304,2]
[313479047,1707393040597,-200.0,0.00026312,2]
[313479048,1707393040606,-156.12007282,0.00026312,2]
[313479049,1707393040615,-1232.97655624,0.00026314,2]
[313479050,1707393040624,-168.99642605,0.00026314,2]
[313479051,1707393040633,-155.43910183,0.00026314,2]
[313479052,1707393040642,-151.0,0.0002635,2]
[313479053,1707393040651,-236.30571306,0.00026411,2]
[313479054,1707393040660,-155.23140499,0.00026411,2]
[313479055,1707393040670,-160.17226844,0.00026413,2]
[313479056,1707393040679,-288.60739896,0.00026413,2]
[313479057,1707393040688,-1756.21856483,0.00026413,2]
[313479058,1707393040697,-964.08109909,0.00026419,2]
[313479059,1707393040706,-171.10158877,0.00026562,2]
[313479060,1707393040714,-371.30136687,0.00026571,2]
[313479061,1707393040723,-1000.0,0.00026571,3]
[313479062,1707393040732,-205.62043359,0.0002658,2]
[313479063,1707393040741,-370.02806153,0.0002658,2]
[313479064,1707393040751,-201.83160201,0.00026599,2]
[313479066,1707393040763,-339.76446322,0.00026608,2]
[313479068,1707393040772,-192.51366149,0.00026608,2]
[313479069,1707393040781,-1000.0,0.00026618,3]
[313479070,1707393040790,-368.49007513,0.0002662,2]
[313479071,1707393040800,-1000.0,0.0002663,3]
[313479072,1707393040808,-36446.40091346,0.000268,2]
[313479073,1707393041664,-11236.297818,0.000268,2]
[313479077,1707393041714,-6691.12499964,0.000268,2]
[313479079,1707393041725,-821.7416831,0.000268,2]
[313479204,1707393046598,-748.03005428,0.00026217,2]
[313479230,1707393352297,11775.90707307,0.000201,4]
[313479231,1707393352325,48863.47292693,0.000201,4]
[313479232,1707393479825,500.0,0.0003,120]
[313479314,1707394232648,-1114.9970642,0.00019956,2]
[313479315,1707394232657,-590.15719574,0.00019957,2]
[313479316,1707394232667,-1745.88499104,0.00019957,2]
[313479317,1707394232677,-155.07133281,0.00019958,2]
[313479318,1707394232685,-640.48860722,0.00019958,2]
[313479319,1707394232695,-991.05914582,0.00019958,2]
[313479320,1707394232704,-2467.49018674,0.00019958,2]
[313479321,1707394232714,-160.55683341,0.00019995,2]
[313479322,1707394232723,-231.418884,0.00022658,2]
[313479323,1707394232733,-3270.1009205,0.00022906,2]
[313479324,1707394232742,-2534.79713918,0.00023033,2]
[313479358,1707394238697,-269.89305792,0.00023033,2]
[313479360,1707394238706,-155.75505214,0.00023878,2]
[313479362,1707394238715,-184.89925643,0.00024471,2]
[313479364,1707394238724,-732.84369711,0.00024698,2]
[313479365,1707394238734,-146.47738665,0.00025,2]
[313479366,1707394238745,-259.9792,0.00025,2]
[313479367,1707394238808,-6585.61342879,0.00025,2]
[313479368,1707394238819,-415.36139981,0.00025,2]
[313479369,1707394238827,-3193.37712015,0.00025999,2]
[313479400,1707394242111,-1545.69189512,0.00025999,2]
[313479401,1707394242120,-620.0000053,0.00026006,2]
[313479402,1707394242130,-3742.17,0.00026107,3]
[313479403,1707394242142,-1704.63634017,0.00026107,3]
[313479404,1707394242155,-1413.84365983,0.00026107,3]
[313479405,1707394242166,-8137.55867215,0.00026108,2]
[313479406,1707394242179,-843.94215077,0.00026108,2]
[313479407,1707394242193,-497.58055957,0.00026108,2]
[313479408,1707394242205,-2762.39368588,0.00026116,2]
[313479409,1707394242218,-820.60094681,0.00026116,2]
[313479410,1707394242228,-238.11815276,0.00026116,2]
[313479411,1707394242239,-906.00048725,0.00026117,2]
[313479412,1707394242249,-500.0,0.00026117,2]
[313479413,1707394242259,-500.0,0.00026117,2]
[313479414,1707394242269,-498.99870823,0.00026117,2]
[313479415,1707394242278,-500.0,0.00026117,2]
[313479416,1707394242288,-500.0,0.00026117,2]
[313479417,1707394242297,-500.0,0.00026117,2]
[313479418,1707394242307,-598.16884218,0.00026117,2]
[313479419,1707394242317,-500.0,0.00026117,2]
[313479420,1707394242327,-489.78354849,0.00026117,2]
[313479421,1707394242337,-355.39279598,0.00026117,2]
[313479422,1707394242349,-144.60720402,0.00026117,2]
[313479423,1707394242359,-500.0,0.00026117,2]
[313479424,1707394242368,-500.0,0.00026117,2]
[313479425,1707394242377,-500.0,0.00026117,2]
[313479426,1707394242389,-471.88757635,0.00026117,2]
[313479427,1707394242439,-28.11242365,0.00026117,2]
[313479428,1707394242448,-500.0,0.00026117,2]
[313479429,1707394242458,-500.0,0.00026117,2]
[313479430,1707394242467,-500.0,0.00026117,2]
[313479431,1707394242476,-78.83117514,0.00026117,2]
[313479432,1707394242487,-421.16882486,0.00026117,2]
[313479433,1707394242496,-500.0,0.00026117,2]
[313479434,1707394242505,-500.0,0.00026117,2]
[313479435,1707394242514,-500.0,0.00026117,2]
[313479436,1707394242523,-500.0,0.00026117,2]
[313479437,1707394242532,-500.0,0.00026117,2]
[313479438,1707394242541,-500.0,0.00026117,2]
[313479439,1707394242550,-500.0,0.00026117,2]
[313479440,1707394242559,-500.0,0.00026117,2]
[313479441,1707394242568,-500.0,0.00026117,2]
[313479442,1707394242578,-500.0,0.00026117,2]
[313479443,1707394242586,-500.0,0.00026117,2]
[313479444,1707394242595,-500.0,0.00026117,2]
[313479445,1707394242604,-500.0,0.00026117,2]
[313479446,1707394242613,-500.0,0.00026117,2]
[313479447,1707394242623,-500.0,0.00026117,2]
[313479448,1707394242633,-500.0,0.00026117,2]
[313479449,1707394242644,-500.0,0.00026117,2]
[313479450,1707394242653,-500.0,0.00026117,2]
[313479451,1707394242662,-500.0,0.00026117,2]
[313479452,1707394242671,-500.0,0.00026117,2]
[313479453,1707394242680,-500.0,0.00026117,2]
[313479454,1707394242688,-500.0,0.00026117,2]
[313479455,1707394242698,-500.0,0.00026117,2]
[313479456,1707394242707,-500.0,0.00026117,2]
[313479457,1707394242716,-500.0,0.00026117,2]
[313479458,1707394242725,-500.0,0.00026117,2]
[313479459,1707394242734,-500.0,0.00026117,2]
[313479460,1707394242742,-500.0,0.00026117,2]
[313479461,1707394242751,-500.0,0.00026117,2]
[313479462,1707394242760,-500.0,0.00026117,2]
[313479463,1707394242769,-500.0,0.00026117,2]
[313479464,1707394242778,-500.0,0.00026117,2]
[313479465,1707394242787,-500.0,0.00026117,2]
[313479466,1707394242796,-500.0,0.00026117,2]
[313479467,1707394242805,-500.0,0.00026117,2]
[313479468,1707394242894,-500.0,0.00026117,2]
[313479469,1707394242904,-500.0,0.00026117,2]
[313479470,1707394242913,-500.0,0.00026117,2]
[313479471,1707394242922,-344.86386932,0.00026117,2]
[313479472,1707394242931,-500.0,0.00026117,2]
[313479473,1707394242939,-347.55681211,0.00026117,2]
[313479474,1707394242947,-32701.03916576,0.00026118,2]
[313479512,1707394243686,-5545.10719404,0.00026118,2]
[313479514,1707394243699,-478.15504077,0.00026118,2]
[313479593,1707394695261,1000.0,0.00042297,30]
[313479594,1707394696889,1000.0,0.00042297,30]
[313479595,1707394697313,1000.0,0.00042297,30]
[313479596,1707394697686,1000.0,0.00042297,30]
[313479597,1707394698071,1000.0,0.00042297,30]
[313479598,1707394698452,1000.0,0.00042297,30]
[313479599,1707394698820,1000.0,0.00042297,30]
[313479600,1707394699210,1000.0,0.00042297,30]
[313479601,1707394699583,1000.0,0.00042297,30]
[313479602,1707394699958,1000.0,0.00042297,30]
[313479603,1707394700352,1000.0,0.00042297,30]
[313479604,1707394700768,1000.0,0.00042297,30]
[313479605,1707394701151,1000.0,0.00042297,30]
[313479606,1707394701543,1000.0,0.00042297,30]
[313479607,1707394701935,1000.0,0.00042297,30]
[313479608,1707394702329,1000.0,0.00042297,30]
[313479609,1707394702725,1000.0,0.00042297,30]
[313479610,1707394703142,1000.0,0.00042297,30]
[313479611,1707394703557,1000.0,0.00042297,30]
[313479612,1707394704075,1000.0,0.00042297,30]
[313479613,1707394704313,1000.0,0.00042297,30]
[313479614,1707394704743,1000.0,0.00042297,30]
[313479615,1707394705069,1000.0,0.00042297,30]
[313479616,1707394705452,1000.0,0.00042297,30]
[313479617,1707394705895,1000.0,0.00042297,30]
[313479618,1707394706222,1000.0,0.00042297,30]
[313479619,1707394706585,1000.0,0.00042297,30]
[313479620,1707394706989,1000.0,0.00042297,30]
[313479621,1707394707373,1000.0,0.00042297,30]
[313479622,1707394707781,1000.0,0.00042297,30]
[313479623,1707394708166,1000.0,0.00042297,30]
[313479624,1707394708576,1000.0,0.00042297,30]
[313479625,1707394708969,1000.0,0.00042297,30]
[313479626,1707394709349,1000.0,0.00042297,30]
[313479627,1707394709749,1000.0,0.00042297,30]
[313479628,1707394710119,1000.0,0.00042297,30]
[313479629,1707394710504,1000.0,0.00042297,30]
[313479630,1707394710885,1000.0,0.00042297,30]
[313479631,1707394711273,1000.0,0.00042297,30]
[313479632,1707394711653,1000.0,0.00042297,30]
[313479633,1707394712052,1000.0,0.00042297,30]
[313479634,1707394712422,1000.0,0.00042297,30]
[313479635,1707394712803,1000.0,0.00042297,30]
[313479636,1707394713600,1000.0,0.00042297,30]
[313479637,1707394713956,1000.0,0.00042297,30]
[313479638,1707394713992,1000.0,0.00042297,30]
[313479639,1707394714390,1000.0,0.00042297,30]
[313479640,1707394714869,1000.0,0.00042297,30]
[313479641,1707394715190,1000.0,0.00042297,30]
[313479642,1707394715612,1000.0,0.00042297,30]
[313479643,1707394716064,1000.0,0.00042297,30]
[313479644,1707394716410,1000.0,0.00042297,30]
[313479645,1707394716775,1000.0,0.00042297,30]
[313479646,1707394717190,1000.0,0.00042297,30]
[313479647,1707394717637,1000.0,0.00042297,30]
[313479648,1707394718002,1000.0,0.00042297,30]
[313479649,1707394718405,1000.0,0.00042297,30]
[313479650,1707394718802,1000.0,0.00042297,30]
[313479651,1707394719201,1000.0,0.00042297,30]
[313479652,1707394719586,1000.0,0.00042297,30]
[313479653,1707394719972,1000.0,0.00042297,30]
[313479654,1707394720355,1000.0,0.00042297,30]
[313479655,1707394720765,1000.0,0.00042297,30]
[313479656,1707394721130,1000.0,0.00042297,30]